[Event "*** Biggest EVER Titled Tuesday"]
[Site "Chess.com"]
[Date "2018.04.17"]
[Round "5"]
[White "PulpanJ"]
[Black "Jospem"]
[Result "0-1"]
[WhiteElo "2470"]
[BlackElo "2698"]
[TimeControl "180+2"]
[EndTime "14:11:07 PDT"]
[Termination "Jospem won by checkmate"]

1. e4 {[%clk 0:02:57.9]} 1... c5 {[%clk 0:03:01.4]} 2. Nf3 {[%clk 0:02:58.5]}
2... d6 {[%clk 0:03:03]} 3. d4 {[%clk 0:02:55.8]} 3... cxd4 {[%clk 0:03:04.9]}
4. Nxd4 {[%clk 0:02:57.6]} 4... Nf6 {[%clk 0:03:06.1]} 5. Nc3 {[%clk 0:02:57.7]}
5... a6 {[%clk 0:03:07.6]} 6. Be2 {[%clk 0:02:58.3]} 6... e5 {[%clk 0:03:08.4]}
7. Nb3 {[%clk 0:02:52.6]} 7... Be7 {[%clk 0:03:08.6]} 8. O-O {[%clk 0:02:53.1]}
8... O-O {[%clk 0:03:09.8]} 9. Qd3 {[%clk 0:02:53.7]} 9... Be6 {[%clk
0:03:09.9]} 10. Nd5 {[%clk 0:02:48.8]} 10... Bxd5 {[%clk 0:03:09.7]} 11. exd5
{[%clk 0:02:50.6]} 11... Nbd7 {[%clk 0:03:11.6]} 12. Bd2 {[%clk 0:02:51]} 12...
Ne8 {[%clk 0:03:11]} 13. Bg4 {[%clk 0:02:51]} 13... Ndf6 {[%clk 0:02:55]} 14.
Be2 {[%clk 0:02:39.4]} 14... g6 {[%clk 0:02:55]} 15. Na5 {[%clk 0:02:38.9]}
15... Qc7 {[%clk 0:02:50.7]} 16. c4 {[%clk 0:02:40.1]} 16... Nd7 {[%clk
0:02:51.3]} 17. b4 {[%clk 0:02:40.3]} 17... f5 {[%clk 0:02:52.4]} 18. Rac1
{[%clk 0:02:40.3]} 18... Nef6 {[%clk 0:02:23.3]} 19. Qb3 {[%clk 0:02:36.6]}
19... Kg7 {[%clk 0:02:13.4]} 20. a4 {[%clk 0:02:22.5]} 20... Rab8 {[%clk
0:02:01.9]} 21. f4 {[%clk 0:02:14.7]} 21... Ne4 {[%clk 0:01:58.5]} 22. Be3
{[%clk 0:02:07]} 22... exf4 {[%clk 0:01:58.5]} 23. Bxf4 {[%clk 0:02:04.6]} 23...
Bg5 {[%clk 0:01:55.3]} 24. Bxg5 {[%clk 0:01:54.2]} 24... Nxg5 {[%clk 0:01:54.4]}
25. Qe3 {[%clk 0:01:37.1]} 25... Ne4 {[%clk 0:01:49.8]} 26. Bd3 {[%clk
0:01:36.7]} 26... Rbe8 {[%clk 0:01:35.2]} 27. Nb3 {[%clk 0:01:26.8]} 27... Nef6
{[%clk 0:01:06.8]} 28. Qf2 {[%clk 0:01:22.4]} 28... Ne5 {[%clk 0:01:07]} 29. Be2
{[%clk 0:01:18.5]} 29... Ne4 {[%clk 0:01:01.6]} 30. Qe3 {[%clk 0:01:16.5]} 30...
Kg8 {[%clk 0:00:57.1]} 31. Kh1 {[%clk 0:00:57.5]} 31... h5 {[%clk 0:00:46.8]}
32. c5 {[%clk 0:00:47.4]} 32... Ng4 {[%clk 0:00:43]} 33. Bxg4 {[%clk 0:00:47.4]}
33... hxg4 {[%clk 0:00:44.9]} 34. Nd4 {[%clk 0:00:39.3]} 34... Rf7 {[%clk
0:00:20.8]} 35. Ne6 {[%clk 0:00:39]} 35... Qe7 {[%clk 0:00:22.4]} 36. Qh6 {[%clk
0:00:28.9]} 36... Qf6 {[%clk 0:00:19.9]} 37. Qf4 {[%clk 0:00:29.4]} 37... dxc5
{[%clk 0:00:15.8]} 38. bxc5 {[%clk 0:00:27.3]} 38... Nc3 {[%clk 0:00:16.2]} 39.
Qd2 {[%clk 0:00:18.6]} 39... Nxd5 {[%clk 0:00:15.3]} 40. Qxd5 {[%clk 0:00:18.1]}
40... Qxe6 {[%clk 0:00:16.7]} 41. Qd2 {[%clk 0:00:19.6]} 41... Rd7 {[%clk
0:00:15.9]} 42. Qc3 {[%clk 0:00:18.8]} 42... Rde7 {[%clk 0:00:13.3]} 43. c6
{[%clk 0:00:18.2]} 43... bxc6 {[%clk 0:00:11.1]} 44. Qa5 {[%clk 0:00:18.2]}
44... Rh7 {[%clk 0:00:09.3]} 45. Qxa6 {[%clk 0:00:15.4]} 45... Qe5 {[%clk
0:00:09.3]} 46. Qc4+ {[%clk 0:00:16.2]} 46... Re6 {[%clk 0:00:10.8]} 47. g3
{[%clk 0:00:10.6]} 47... Qe2 {[%clk 0:00:11.6]} 48. Rf2 {[%clk 0:00:05.7]} 48...
Qxc4 {[%clk 0:00:06.4]} 49. Rxc4 {[%clk 0:00:06.2]} 49... Rd7 {[%clk 0:00:08.3]}
50. Rfc2 {[%clk 0:00:07]} 50... Rd1+ {[%clk 0:00:09.6]} 51. Kg2 {[%clk
0:00:07.9]} 51... Ree1 {[%clk 0:00:10.4]} 52. Rxc6 {[%clk 0:00:08.3]} 52... Kg7
{[%clk 0:00:11.1]} 53. a5 {[%clk 0:00:09]} 53... Rg1+ {[%clk 0:00:10.4]} 54. Kf2
{[%clk 0:00:09.5]} 54... Rh1 {[%clk 0:00:10.4]} 55. Ke3 {[%clk 0:00:10.4]} 55...
Rhf1 {[%clk 0:00:11.6]} 56. a6 {[%clk 0:00:10.8]} 56... Ra1 {[%clk 0:00:13.2]}
57. Ke2 {[%clk 0:00:10.3]} 57... Rh1 {[%clk 0:00:13.7]} 58. Ke3 {[%clk
0:00:11.1]} 58... Kh6 {[%clk 0:00:15.3]} 59. Kf4 {[%clk 0:00:10.2]} 59... Rae1
{[%clk 0:00:15.1]} 60. Rf2 {[%clk 0:00:11.1]} 60... Re4# {[%clk 0:00:15.7]} 0-1

[Event "*** Biggest EVER Titled Tuesday"]
[Site "Chess.com"]
[Date "2018.04.17"]
[Round "5"]
[White "kikoveiga"]
[Black "Slovak_fighter2000"]
[Result "0-1"]
[WhiteElo "2183"]
[BlackElo "2265"]
[TimeControl "180+2"]
[EndTime "14:11:47 PDT"]
[Termination "Slovak_fighter2000 won by resignation"]

1. e4 {[%clk 0:03:01.9]} 1... e6 {[%clk 0:03:00.9]} 2. d4 {[%clk 0:03:01.2]}
2... d5 {[%clk 0:03:02.4]} 3. Nd2 {[%clk 0:03:03]} 3... a6 {[%clk 0:03:01.2]} 4.
Ngf3 {[%clk 0:03:02.5]} 4... c5 {[%clk 0:03:01.9]} 5. exd5 {[%clk 0:03:02]} 5...
exd5 {[%clk 0:03:02.6]} 6. c3 {[%clk 0:02:59.4]} 6... Nf6 {[%clk 0:03:02.6]} 7.
Be2 {[%clk 0:03:00.1]} 7... Nc6 {[%clk 0:03:03.6]} 8. O-O {[%clk 0:03:01.2]}
8... Be7 {[%clk 0:03:04.4]} 9. dxc5 {[%clk 0:02:59.6]} 9... Bxc5 {[%clk
0:03:04.5]} 10. Nb3 {[%clk 0:03:01.1]} 10... Bb6 {[%clk 0:03:05.4]} 11. Bg5
{[%clk 0:03:02.2]} 11... O-O {[%clk 0:03:04.7]} 12. Bxf6 {[%clk 0:02:56.6]}
12... Qxf6 {[%clk 0:03:04.4]} 13. Qxd5 {[%clk 0:02:58.1]} 13... Re8 {[%clk
0:03:01]} 14. Rfe1 {[%clk 0:02:46.2]} 14... Be6 {[%clk 0:02:58.5]} 15. Qg5
{[%clk 0:02:41.9]} 15... Qxg5 {[%clk 0:02:47.1]} 16. Nxg5 {[%clk 0:02:43.8]}
16... Bf5 {[%clk 0:02:48.1]} 17. Nf3 {[%clk 0:02:35.5]} 17... Rad8 {[%clk
0:02:45.3]} 18. Bc4 {[%clk 0:02:31.1]} 18... Bg4 {[%clk 0:02:28.5]} 19. Ng5
{[%clk 0:02:18.1]} 19... Ne5 {[%clk 0:02:24]} 20. Rxe5 {[%clk 0:02:15]} 20...
Rxe5 {[%clk 0:02:22.2]} 21. Nxf7 {[%clk 0:02:09.6]} 21... Re4 {[%clk 0:02:20.6]}
22. Nd6+ {[%clk 0:01:37.3]} 22... Rxc4 {[%clk 0:02:16.6]} 23. Nxc4 {[%clk
0:01:39.2]} 23... Bc7 {[%clk 0:02:13.4]} 24. f3 {[%clk 0:01:36.1]} 24... Bf5
{[%clk 0:02:10.7]} 25. Kf2 {[%clk 0:01:32.4]} 25... b5 {[%clk 0:02:09.6]} 26.
Ne3 {[%clk 0:01:33.2]} 26... Bb6 {[%clk 0:02:10.1]} 27. Nd4 {[%clk 0:01:30.5]}
27... Bg6 {[%clk 0:02:06.9]} 28. Rd1 {[%clk 0:01:26]} 28... b4 {[%clk
0:01:56.3]} 29. Ke2 {[%clk 0:01:18.8]} 29... bxc3 {[%clk 0:01:55.1]} 30. bxc3
{[%clk 0:01:20.7]} 30... Bc5 {[%clk 0:01:52]} 31. Ne6 {[%clk 0:01:10]} 31...
Rxd1 {[%clk 0:01:47.5]} 32. Nxd1 {[%clk 0:01:11.9]} 32... Bd6 {[%clk 0:01:48.8]}
33. Nd4 {[%clk 0:00:40.2]} 33... Bxh2 {[%clk 0:01:47.8]} 34. Nb2 {[%clk
0:00:38.7]} 34... Be5 {[%clk 0:01:46.7]} 35. Nc4 {[%clk 0:00:36.7]} 35... Bf6
{[%clk 0:01:44.5]} 36. Nd6 {[%clk 0:00:33.5]} 36... Kf8 {[%clk 0:01:38]} 37. Ne4
{[%clk 0:00:34.2]} 37... Be5 {[%clk 0:01:36.9]} 38. Nc6 {[%clk 0:00:33.1]} 38...
Bc7 {[%clk 0:01:32.4]} 39. Nb4 {[%clk 0:00:33.7]} 39... a5 {[%clk 0:01:33.2]}
40. Nc6 {[%clk 0:00:35]} 40... Bf7 {[%clk 0:01:29.8]} 41. a3 {[%clk 0:00:32]}
41... Bd5 {[%clk 0:01:24.7]} 42. Nd4 {[%clk 0:00:32.1]} 42... Bc4+ {[%clk
0:01:19.1]} 43. Ke3 {[%clk 0:00:33.1]} 43... Bd8 {[%clk 0:01:17]} 44. Nd2 {[%clk
0:00:31.9]} 44... Bf7 {[%clk 0:01:12.1]} 45. c4 {[%clk 0:00:29.9]} 45... Be7
{[%clk 0:01:12.2]} 46. Nc2 {[%clk 0:00:14.9]} 46... Bc5+ {[%clk 0:01:02.3]} 47.
Kd3 {[%clk 0:00:16.2]} 47... Bg6+ {[%clk 0:01:00.8]} 48. Ne4 {[%clk 0:00:17.6]}
48... Ke7 {[%clk 0:00:56.6]} 49. Kc3 {[%clk 0:00:18.4]} 49... Ba7 {[%clk
0:00:51]} 50. Nd4 {[%clk 0:00:18.9]} 50... Kd7 {[%clk 0:00:49]} 51. Nb3 {[%clk
0:00:18.6]} 51... Bb6 {[%clk 0:00:48.2]} 52. c5 {[%clk 0:00:19.5]} 52... Bc7
{[%clk 0:00:47.4]} 53. Kd4 {[%clk 0:00:19.4]} 53... Bf7 {[%clk 0:00:44.3]} 54.
Nbd2 {[%clk 0:00:20.3]} 54... Kc6 {[%clk 0:00:38]} 55. Nc4 {[%clk 0:00:21.7]}
55... Be6 {[%clk 0:00:29.3]} 56. Ne5+ {[%clk 0:00:22.6]} 56... Kb5 {[%clk
0:00:29.6]} 57. Nc3+ {[%clk 0:00:18.3]} 57... Ka6 {[%clk 0:00:28.3]} 58. Nd5
{[%clk 0:00:19.7]} 58... Bd8 {[%clk 0:00:23.4]} 59. c6 {[%clk 0:00:21]} 59...
Bb6+ {[%clk 0:00:18.6]} 60. Ke4 {[%clk 0:00:19.5]} 60... Bc5 {[%clk 0:00:18.4]}
61. Nd7 {[%clk 0:00:19.1]} 61... Bd6 {[%clk 0:00:16.2]} 62. Nf4 {[%clk
0:00:15.8]} 62... Bb3 {[%clk 0:00:11.9]} 63. Nd5 {[%clk 0:00:16.7]} 63... Ba4
{[%clk 0:00:10.9]} 64. Ne5 {[%clk 0:00:16.4]} 64... Bxe5 {[%clk 0:00:09.4]} 65.
Kxe5 {[%clk 0:00:18.3]} 65... Bxc6 {[%clk 0:00:10.5]} 66. Ne7 {[%clk 0:00:20.2]}
66... Bb7 {[%clk 0:00:10.2]} 67. Nf5 {[%clk 0:00:21.7]} 67... g6 {[%clk
0:00:10.5]} 68. Ne7 {[%clk 0:00:22.8]} 68... Kb5 {[%clk 0:00:11.3]} 69. Kf6
{[%clk 0:00:22.8]} 69... Ka4 {[%clk 0:00:12.2]} 70. Kg7 {[%clk 0:00:23.7]} 70...
Kxa3 {[%clk 0:00:13.2]} 71. Kxh7 {[%clk 0:00:25.2]} 71... Kb4 {[%clk 0:00:12.7]}
72. Kxg6 {[%clk 0:00:24.8]} 72... a4 {[%clk 0:00:14.1]} 73. Nf5 {[%clk
0:00:26.2]} 73... a3 {[%clk 0:00:12.8]} 74. Nd4 {[%clk 0:00:27.7]} 74... a2
{[%clk 0:00:09.7]} 75. f4 {[%clk 0:00:28.1]} 75... Bxg2 {[%clk 0:00:07.6]} 76.
f5 {[%clk 0:00:28.9]} 76... Bd5 {[%clk 0:00:05.6]} 77. f6 {[%clk 0:00:30]} 77...
Kc4 {[%clk 0:00:06.4]} 78. Nc2 {[%clk 0:00:29.8]} 78... Kc3 {[%clk 0:00:07.2]}
79. Na1 {[%clk 0:00:30.8]} 79... Kb2 {[%clk 0:00:08]} 80. f7 {[%clk 0:00:31.1]}
80... Bxf7+ {[%clk 0:00:09]} 81. Kxf7 {[%clk 0:00:33]} 81... Kxa1 {[%clk
0:00:10.4]} 0-1

[Event "*** Biggest EVER Titled Tuesday"]
[Site "Chess.com"]
[Date "2018.04.17"]
[Round "5"]
[White "Arystanner23"]
[Black "Iball95"]
[Result "0-1"]
[WhiteElo "2485"]
[BlackElo "2542"]
[TimeControl "180+2"]
[EndTime "14:12:56 PDT"]
[Termination "Iball95 won by checkmate"]

1. e4 {[%clk 0:03:01.9]} 1... c5 {[%clk 0:03:00]} 2. Nf3 {[%clk 0:03:02.8]} 2...
Nc6 {[%clk 0:03:00.5]} 3. Bb5 {[%clk 0:03:03]} 3... d6 {[%clk 0:02:58.8]} 4.
Bxc6+ {[%clk 0:03:03.2]} 4... bxc6 {[%clk 0:02:59.5]} 5. O-O {[%clk 0:03:05.1]}
5... e5 {[%clk 0:03:00.3]} 6. c3 {[%clk 0:03:05.9]} 6... f5 {[%clk 0:03:00.8]}
7. d4 {[%clk 0:03:07.1]} 7... fxe4 {[%clk 0:02:32.6]} 8. Ng5 {[%clk 0:03:06.5]}
8... cxd4 {[%clk 0:02:27.4]} 9. cxd4 {[%clk 0:03:06.4]} 9... Be7 {[%clk
0:02:21.4]} 10. dxe5 {[%clk 0:03:04.2]} 10... Bxg5 {[%clk 0:02:21.7]} 11. Qh5+
{[%clk 0:03:05.1]} 11... g6 {[%clk 0:02:22.9]} 12. Qxg5 {[%clk 0:03:06.5]} 12...
Qxg5 {[%clk 0:02:24]} 13. Bxg5 {[%clk 0:03:08]} 13... d5 {[%clk 0:02:22.2]} 14.
f3 {[%clk 0:03:04.6]} 14... h6 {[%clk 0:02:21.3]} 15. Be3 {[%clk 0:03:03.5]}
15... exf3 {[%clk 0:02:20.4]} 16. Rxf3 {[%clk 0:03:04]} 16... Bf5 {[%clk
0:02:14.5]} 17. Nc3 {[%clk 0:03:02.8]} 17... Ne7 {[%clk 0:02:13.9]} 18. Na4
{[%clk 0:03:02.8]} 18... O-O {[%clk 0:02:10.6]} 19. Rc1 {[%clk 0:03:01.7]} 19...
g5 {[%clk 0:01:59.2]} 20. Bc5 {[%clk 0:03:01.2]} 20... Rae8 {[%clk 0:01:54.9]}
21. Rcf1 {[%clk 0:02:43.9]} 21... Bc2 {[%clk 0:01:51.2]} 22. b3 {[%clk
0:02:32.6]} 22... Rxf3 {[%clk 0:01:48.9]} 23. Rxf3 {[%clk 0:02:33.9]} 23... Nf5
{[%clk 0:01:50]} 24. Rc3 {[%clk 0:02:26.9]} 24... Be4 {[%clk 0:01:45.2]} 25. Bd6
{[%clk 0:02:16.4]} 25... d4 {[%clk 0:01:38.8]} 26. Rc4 {[%clk 0:02:06.8]} 26...
Bd5 {[%clk 0:01:39.2]} 27. Rc1 {[%clk 0:02:05.2]} 27... Kf7 {[%clk 0:01:10.8]}
28. Nc5 {[%clk 0:01:59.3]} 28... Rd8 {[%clk 0:00:29.1]} 29. Rf1 {[%clk
0:01:58.4]} 29... Kg6 {[%clk 0:00:30.3]} 30. g4 {[%clk 0:01:58.5]} 30... Nxd6
{[%clk 0:00:29.9]} 31. Rf6+ {[%clk 0:01:59.6]} 31... Kg7 {[%clk 0:00:29.5]} 32.
Rxd6 {[%clk 0:02:00.8]} 32... Re8 {[%clk 0:00:30.6]} 33. e6 {[%clk 0:01:58.2]}
33... Kf6 {[%clk 0:00:32]} 34. Kf2 {[%clk 0:01:52.4]} 34... Ke5 {[%clk
0:00:31.1]} 35. Rd7 {[%clk 0:01:45.7]} 35... Bxe6 {[%clk 0:00:32.3]} 36. Rxa7
{[%clk 0:01:46.8]} 36... Rf8+ {[%clk 0:00:32.2]} 37. Ke1 {[%clk 0:01:47.1]}
37... Bxg4 {[%clk 0:00:32.7]} 38. Nd3+ {[%clk 0:01:44.3]} 38... Ke4 {[%clk
0:00:33.6]} 39. Nf2+ {[%clk 0:01:45.2]} 39... Kf3 {[%clk 0:00:32.7]} 40. Nxg4
{[%clk 0:01:39.1]} 40... Kxg4 {[%clk 0:00:34.6]} 41. Rd7 {[%clk 0:01:39.9]}
41... c5 {[%clk 0:00:35]} 42. b4 {[%clk 0:01:40.4]} 42... cxb4 {[%clk
0:00:33.7]} 43. Rxd4+ {[%clk 0:01:41.4]} 43... Kh3 {[%clk 0:00:35.3]} 44. Rxb4
{[%clk 0:01:41]} 44... Kxh2 {[%clk 0:00:36.1]} 45. a4 {[%clk 0:01:41]} 45... h5
{[%clk 0:00:37]} 46. a5 {[%clk 0:01:42.6]} 46... g4 {[%clk 0:00:38.2]} 47. a6
{[%clk 0:01:44.2]} 47... g3 {[%clk 0:00:39.5]} 48. Rh4+ {[%clk 0:01:40.6]} 48...
Kg2 {[%clk 0:00:35.7]} 49. Rxh5 {[%clk 0:01:42]} 49... Kf3 {[%clk 0:00:28.5]}
50. a7 {[%clk 0:01:35.9]} 50... g2 {[%clk 0:00:25.3]} 51. Rf5+ {[%clk 0:01:37]}
51... Kg4 {[%clk 0:00:26.3]} 52. Rxf8 {[%clk 0:01:10.8]} 52... g1=Q+ {[%clk
0:00:27.3]} 53. Rf1 {[%clk 0:01:10.6]} 53... Qxa7 {[%clk 0:00:27.9]} 54. Ke2
{[%clk 0:01:11.9]} 54... Qa6+ {[%clk 0:00:24.7]} 55. Ke1 {[%clk 0:01:12.9]}
55... Qd3 {[%clk 0:00:24.5]} 56. Rf2 {[%clk 0:01:11]} 56... Qe3+ {[%clk
0:00:20.9]} 57. Kf1 {[%clk 0:01:08.1]} 57... Qc1+ {[%clk 0:00:20.5]} 58. Kg2
{[%clk 0:01:09.1]} 58... Qc6+ {[%clk 0:00:20.5]} 59. Kf1 {[%clk 0:01:10.2]}
59... Kg3 {[%clk 0:00:22]} 60. Rd2 {[%clk 0:01:03.5]} 60... Qc4+ {[%clk
0:00:22.4]} 61. Ke1 {[%clk 0:01:03.3]} 61... Qc3 {[%clk 0:00:23.4]} 62. Ke2
{[%clk 0:01:01.9]} 62... Kf4 {[%clk 0:00:22.3]} 63. Rd3 {[%clk 0:01:02.9]} 63...
Qc4 {[%clk 0:00:23.6]} 64. Kd2 {[%clk 0:01:03.5]} 64... Ke4 {[%clk 0:00:25]} 65.
Re3+ {[%clk 0:01:04.5]} 65... Kd4 {[%clk 0:00:26.4]} 66. Re2 {[%clk 0:01:05.4]}
66... Qc3+ {[%clk 0:00:27.1]} 67. Kd1 {[%clk 0:01:06.8]} 67... Qa5 {[%clk
0:00:25.2]} 68. Rd2+ {[%clk 0:01:07.8]} 68... Ke3 {[%clk 0:00:26.4]} 69. Rb2
{[%clk 0:00:47.1]} 69... Qa4+ {[%clk 0:00:19.5]} 70. Kc1 {[%clk 0:00:45.1]}
70... Qa3 {[%clk 0:00:20.9]} 71. Kb1 {[%clk 0:00:38.8]} 71... Kd3 {[%clk
0:00:21]} 72. Rd2+ {[%clk 0:00:39.9]} 72... Ke3 {[%clk 0:00:20.2]} 73. Rb2
{[%clk 0:00:39.6]} 73... Qa4 {[%clk 0:00:20.9]} 74. Kc1 {[%clk 0:00:39.6]} 74...
Kd3 {[%clk 0:00:22]} 75. Rb3+ {[%clk 0:00:32.9]} 75... Kc4 {[%clk 0:00:20.4]}
76. Rb2 {[%clk 0:00:33.9]} 76... Qa1+ {[%clk 0:00:21.2]} 77. Kc2 {[%clk
0:00:34.7]} 77... Qe1 {[%clk 0:00:21.6]} 78. Ra2 {[%clk 0:00:32.1]} 78... Qe2+
{[%clk 0:00:22.1]} 79. Kb1 {[%clk 0:00:32]} 79... Qd1+ {[%clk 0:00:23.4]} 80.
Kb2 {[%clk 0:00:33]} 80... Qd4+ {[%clk 0:00:24.3]} 81. Kc2 {[%clk 0:00:33.4]}
81... Qd3+ {[%clk 0:00:24.8]} 82. Kb2 {[%clk 0:00:34.3]} 82... Kb4 {[%clk
0:00:26.2]} 83. Kc1 {[%clk 0:00:30.4]} 83... Qe3+ {[%clk 0:00:21.5]} 84. Kb1
{[%clk 0:00:18.3]} 84... Qe4+ {[%clk 0:00:21]} 85. Kc1 {[%clk 0:00:18.6]} 85...
Kb3 {[%clk 0:00:19.3]} 86. Rd2 {[%clk 0:00:17.7]} 86... Qe1+ {[%clk 0:00:18.7]}
87. Rd1 {[%clk 0:00:17.9]} 87... Qc3+ {[%clk 0:00:20.6]} 88. Kb1 {[%clk
0:00:19.2]} 88... Qb2# {[%clk 0:00:22.4]} 0-1

[Event "*** Biggest EVER Titled Tuesday"]
[Site "Chess.com"]
[Date "2018.04.17"]
[Round "6"]
[White "biostatistician"]
[Black "MrRooke6"]
[Result "1-0"]
[WhiteElo "2441"]
[BlackElo "2400"]
[TimeControl "180+2"]
[EndTime "14:15:57 PDT"]
[Termination "biostatistician won by resignation"]

1. d4 {[%clk 0:03:01.9]} 1... Nf6 {[%clk 0:02:59.2]} 2. Nf3 {[%clk 0:03:03.1]}
2... g6 {[%clk 0:02:59.1]} 3. c4 {[%clk 0:03:03.8]} 3... Bg7 {[%clk 0:02:59.8]}
4. Nc3 {[%clk 0:03:05]} 4... O-O {[%clk 0:03:00.9]} 5. e4 {[%clk 0:03:06]} 5...
d6 {[%clk 0:03:02.2]} 6. Be2 {[%clk 0:03:07.9]} 6... Na6 {[%clk 0:03:03]} 7. Bg5
{[%clk 0:03:04.9]} 7... Qe8 {[%clk 0:03:02.3]} 8. O-O {[%clk 0:03:03.2]} 8... e5
{[%clk 0:03:03]} 9. Bxf6 {[%clk 0:03:04.6]} 9... Bxf6 {[%clk 0:03:03.7]} 10. c5
{[%clk 0:03:06.1]} 10... exd4 {[%clk 0:03:00.2]} 11. Nd5 {[%clk 0:03:05.1]}
11... dxc5 {[%clk 0:02:49.7]} 12. Bxa6 {[%clk 0:03:04.2]} 12... bxa6 {[%clk
0:02:50.6]} 13. Nxf6+ {[%clk 0:03:05]} 1-0

[Event "*** Biggest EVER Titled Tuesday"]
[Site "Chess.com"]
[Date "2018.04.17"]
[Round "6"]
[White "oskariot"]
[Black "Arystanner23"]
[Result "0-1"]
[WhiteElo "2388"]
[BlackElo "2491"]
[TimeControl "180+2"]
[EndTime "14:18:31 PDT"]
[Termination "Arystanner23 won by resignation"]

1. h4 {[%clk 0:02:50.4]} 1... e6 {[%clk 0:02:59.5]} 2. Nh3 {[%clk 0:02:52.3]}
2... d5 {[%clk 0:03:00.8]} 3. h5 {[%clk 0:02:52.6]} 3... c5 {[%clk 0:03:01.3]}
4. d3 {[%clk 0:02:38.1]} 4... h6 {[%clk 0:03:01.5]} 5. e3 {[%clk 0:02:32.3]}
5... Nf6 {[%clk 0:03:01.4]} 6. Be2 {[%clk 0:02:34.2]} 6... Nc6 {[%clk
0:03:02.5]} 7. g4 {[%clk 0:02:36.1]} 7... Bd6 {[%clk 0:02:54.3]} 8. Nd2 {[%clk
0:02:38]} 8... b6 {[%clk 0:02:47.9]} 9. Nf1 {[%clk 0:02:38.2]} 9... Bb7 {[%clk
0:02:48.3]} 10. f4 {[%clk 0:02:36.4]} 10... Nd7 {[%clk 0:02:45.6]} 11. Nf2
{[%clk 0:02:34.1]} 11... Qe7 {[%clk 0:02:44.5]} 12. Rg1 {[%clk 0:02:34.7]} 12...
e5 {[%clk 0:02:44.1]} 13. f5 {[%clk 0:02:35.4]} 13... O-O-O {[%clk 0:02:42.7]}
14. c3 {[%clk 0:02:34.9]} 14... Kb8 {[%clk 0:02:33.4]} 15. e4 {[%clk 0:02:35.7]}
15... d4 {[%clk 0:02:33]} 16. c4 {[%clk 0:02:36]} 16... g6 {[%clk 0:02:26.1]}
17. Nh2 {[%clk 0:02:32.8]} 17... gxh5 {[%clk 0:02:25.1]} 18. gxh5 {[%clk
0:02:33.6]} 18... Rdg8 {[%clk 0:02:11.3]} 19. Nhg4 {[%clk 0:02:33.6]} 19... Nf6
{[%clk 0:02:12.4]} 20. Bf3 {[%clk 0:02:31.2]} 20... Nxh5 {[%clk 0:02:10.4]} 21.
Bd2 {[%clk 0:02:31.6]} 21... Nf4 {[%clk 0:02:11.6]} 22. Bxf4 {[%clk 0:02:31.6]}
22... exf4 {[%clk 0:02:12.9]} 23. Qe2 {[%clk 0:02:33.5]} 23... h5 {[%clk
0:02:14]} 24. f6 {[%clk 0:02:34.6]} 24... Qd7 {[%clk 0:02:04.3]} 25. e5 {[%clk
0:02:35.7]} 25... hxg4 {[%clk 0:02:00.1]} 26. Nxg4 {[%clk 0:02:34.5]} 26... Nxe5
{[%clk 0:01:56.3]} 0-1

[Event "*** Biggest EVER Titled Tuesday"]
[Site "Chess.com"]
[Date "2018.04.17"]
[Round "6"]
[White "Mikhail_Golubev"]
[Black "NTBT_DHS"]
[Result "0-1"]
[WhiteElo "2405"]
[BlackElo "2512"]
[TimeControl "180+2"]
[EndTime "14:19:39 PDT"]
[Termination "NTBT_DHS won by resignation"]

1. e4 {[%clk 0:03:01.9]} 1... g6 {[%clk 0:02:59.6]} 2. d4 {[%clk 0:03:01.3]}
2... Bg7 {[%clk 0:03:00.9]} 3. c4 {[%clk 0:02:59.7]} 3... d6 {[%clk 0:03:01.1]}
4. Nc3 {[%clk 0:02:59.2]} 4... Nf6 {[%clk 0:03:02.3]} 5. Nf3 {[%clk 0:02:58.5]}
5... O-O {[%clk 0:03:03.7]} 6. Be2 {[%clk 0:02:59.4]} 6... e5 {[%clk 0:03:04.7]}
7. O-O {[%clk 0:03:00]} 7... Nc6 {[%clk 0:03:05.8]} 8. d5 {[%clk 0:02:59.6]}
8... Ne7 {[%clk 0:03:07]} 9. Ne1 {[%clk 0:02:58.1]} 9... Nd7 {[%clk 0:03:07.9]}
10. f3 {[%clk 0:02:55.6]} 10... f5 {[%clk 0:03:07.8]} 11. Be3 {[%clk 0:02:55.9]}
11... f4 {[%clk 0:03:07.2]} 12. Bf2 {[%clk 0:02:56.3]} 12... g5 {[%clk
0:03:08.6]} 13. Rc1 {[%clk 0:02:55.1]} 13... Ng6 {[%clk 0:02:55.6]} 14. c5
{[%clk 0:02:45.4]} 14... b6 {[%clk 0:02:40.2]} 15. cxd6 {[%clk 0:02:42]} 15...
cxd6 {[%clk 0:02:41]} 16. Nb5 {[%clk 0:02:37.8]} 16... Nf6 {[%clk 0:02:30.2]}
17. Nc7 {[%clk 0:02:32.9]} 17... Rb8 {[%clk 0:02:24]} 18. Ne6 {[%clk 0:02:23.9]}
18... Bxe6 {[%clk 0:02:24.9]} 19. dxe6 {[%clk 0:02:24.6]} 19... Qe7 {[%clk
0:02:23.2]} 20. Nc2 {[%clk 0:02:19.8]} 20... a5 {[%clk 0:02:15.7]} 21. Na3
{[%clk 0:02:19.6]} 21... g4 {[%clk 0:02:08.6]} 22. Nb5 {[%clk 0:02:17.7]} 22...
g3 {[%clk 0:02:04.1]} 23. hxg3 {[%clk 0:02:15.1]} 23... fxg3 {[%clk 0:02:06]}
24. Bxg3 {[%clk 0:02:15.4]} 24... Nh5 {[%clk 0:02:07]} 25. Bh2 {[%clk
0:02:13.3]} 25... Bh6 {[%clk 0:02:02.9]} 26. Qxd6 {[%clk 0:02:03.8]} 26... Be3+
{[%clk 0:02:02.7]} 27. Kh1 {[%clk 0:02:02.6]} 27... Qh4 {[%clk 0:02:03.7]} 28.
Qxe5 {[%clk 0:01:26.2]} 28... Nxe5 {[%clk 0:02:02.9]} 29. g4 {[%clk 0:01:27.2]}
29... Bf4 {[%clk 0:01:49.6]} 0-1